fUST/lending_fUST_20251230
["ID","MTS","AMOUNT","RATE_DAILY","PERIOD"]
[400032697,1767042644474,-967.31,0.00021917,2]
[400032698,1767042644483,-273.35091311,0.00021917,2]
[400032699,1767042644497,-500.0,0.00021917,2]
[400032700,1767042644506,-522.88825418,0.00021917,2]
[400032701,1767042644519,-485.13,0.00021917,2]
[400032702,1767042644529,-500.0,0.00021917,2]
[400032703,1767042644540,-327.11223151,0.00021917,2]
[400032704,1767042644549,-184.88251798,0.00021917,2]
[400032705,1767042644559,-319.68950835,0.00021917,2]
[400032706,1767042644568,-500.0,0.00021917,2]
[400032707,1767042644587,-200.01707268,0.00021917,2]
[400032709,1767042644596,-184.817009,0.00021917,2]
[400032710,1767042644610,-464.19137506,0.00021917,2]
[400032711,1767042644621,-596.55559848,0.00021917,2]
[400032712,1767042644631,-495.84474953,0.00021917,2]
[400032713,1767042644640,-345.23126733,0.00021917,2]
[400032714,1767042644650,-186.48937392,0.00021917,2]
[400032716,1767042644659,-211.21437953,0.00021917,2]
[400032717,1767042644668,-348.06819212,0.00021917,2]
[400032719,1767042644677,-500.0,0.00021917,2]
[400032720,1767042644687,-240.99321294,0.00021917,2]
[400032721,1767042644696,-151.0,0.00021917,2]
[400032722,1767042644706,-360.97170815,0.00021917,2]
[400032723,1767042644715,-151.0,0.00021917,2]
[400032724,1767042644725,-151.2146,0.00021917,2]
[400032725,1767042644734,-251.745364,0.00021917,2]
[400032726,1767042644744,-151.0,0.00021917,2]
[400032727,1767042644754,-449.82536442,0.00021917,2]
[400032728,1767042644763,-224.13773528,0.00021917,2]
[400032729,1767042644773,-228.49898026,0.00021917,2]
[400032730,1767042644785,-502.66559039,0.00021917,2]
[400032731,1767042644795,-231.78420349,0.00021917,2]
[400032732,1767042644805,-187.04819548,0.00021934,2]
[400032733,1767042644815,-213.61,0.00022,2]
[400032734,1767042644825,-1207.08,0.00022,7]
[400032735,1767042644835,-271.2,0.00022188,2]
[400032736,1767042644845,-1201.90565355,0.00022191,2]
[400032737,1767042644855,-498.10670326,0.00022191,2]
[400032738,1767042644864,-500.0,0.00022191,2]
[400032739,1767042644874,-893.04,0.00022191,2]
[400032740,1767042644885,-500.0,0.00022191,2]
[400032741,1767042644895,-500.0,0.00022191,2]
[400032742,1767042644903,-418.82110015,0.00022191,2]
[400032743,1767042644913,-500.0,0.00022191,2]
[400032744,1767042644923,-570.17,0.00022191,2]
[400032745,1767042644932,-500.0,0.00022191,2]
[400032746,1767042644941,-500.0,0.00022191,2]
[400032747,1767042644951,-4821.6,0.00022191,2]
[400032748,1767042644961,-500.0,0.00022191,2]
[400032749,1767042644971,-500.0,0.00022191,2]
[400032750,1767042644980,-1000.0,0.00022191,2]
[400032751,1767042644990,-500.0,0.00022191,2]
[400032752,1767042644999,-502.9,0.00022191,2]
[400032753,1767042645009,-500.0,0.00022191,2]
[400032754,1767042645018,-501.1,0.00022191,2]
[400032755,1767042645028,-680.8,0.00022191,2]
[400032756,1767042645038,-878.29,0.00022191,2]
[400032757,1767042645048,-994.31,0.00022191,2]
[400032758,1767042645057,-967.31,0.00022191,2]
[400032759,1767042645066,-500.0,0.00022191,2]
[400032760,1767042645076,-500.0,0.00022254,2]
[400032761,1767042645086,-10476.5,0.000224,2]
[400032762,1767042645095,-1201.90565355,0.00022465,2]
[400032763,1767042645105,-500.0,0.00022465,2]
[400032764,1767042645114,-893.04,0.00022465,2]
[400032765,1767042645124,-500.0,0.00022465,2]
[400032766,1767042645134,-500.0,0.00022465,2]
[400032767,1767042645143,-570.17,0.00022465,2]
[400032768,1767042645152,-500.0,0.00022465,2]
[400032769,1767042645162,-500.0,0.00022465,2]
[400032770,1767042645172,-4821.6,0.00022465,2]
[400032771,1767042645182,-500.0,0.00022465,2]
[400032772,1767042645191,-500.0,0.00022465,2]
[400032773,1767042645201,-1000.0,0.00022465,2]
[400032774,1767042645211,-500.0,0.00022465,2]
[400032775,1767042645221,-502.9,0.00022465,2]
[400032776,1767042645230,-500.0,0.00022465,2]
[400032777,1767042645240,-501.1,0.00022465,2]
[400032778,1767042645249,-680.8,0.00022465,2]
[400032779,1767042645259,-878.29,0.00022465,2]
[400032780,1767042645267,-994.31,0.00022465,2]
[400032781,1767042645277,-967.31,0.00022465,2]
[400032782,1767042645287,-1822.93,0.000225,14]
[400032783,1767042645296,-2000.0,0.000225,7]
[400032784,1767042645306,-500.0,0.00022548,2]
[400032785,1767042645315,-1201.90565355,0.00022739,2]
[400032786,1767042645325,-500.0,0.00022739,2]
[400032787,1767042645333,-893.04,0.00022739,2]
[400032788,1767042645343,-500.0,0.00022739,2]
[400032789,1767042645352,-500.0,0.00022739,2]
[400032790,1767042645362,-570.17,0.00022739,2]
[400032791,1767042645371,-500.0,0.00022739,2]
[400032792,1767042645380,-500.0,0.00022739,2]
[400032793,1767042645390,-4821.6,0.00022739,2]
[400032794,1767042645400,-500.0,0.00022739,2]
[400032795,1767042645410,-500.0,0.00022739,2]
[400032796,1767042645419,-568.41416315,0.00022739,2]
[400032797,1767042645430,-500.0,0.00022739,2]
[400032798,1767042645439,-502.9,0.00022739,2]
[400032799,1767042645448,-500.0,0.00022739,2]
[400032800,1767042645458,-501.1,0.00022739,2]
[400032801,1767042645468,-680.8,0.00022739,2]
[400032802,1767042645477,-878.29,0.00022739,2]
[400032803,1767042645487,-994.31,0.00022739,2]
[400032804,1767042645500,-967.31,0.00022739,2]
[400032805,1767042645510,-500.0,0.00022785,2]
[400032806,1767042645519,-500.0,0.00022896,2]
[400032807,1767042645528,-500.0,0.00022896,2]
[400032808,1767042645539,-500.0,0.00022896,2]
[400032809,1767042645549,-500.0,0.00022896,2]
[400032810,1767042645558,-500.0,0.00022896,2]
[400032811,1767042645567,-500.0,0.00022896,2]
[400032812,1767042645579,-500.0,0.00022896,2]
[400032813,1767042645588,-500.0,0.00022896,2]
[400032814,1767042645598,-500.0,0.00022896,2]
[400032815,1767042645607,-500.0,0.00022896,2]
[400032816,1767042645618,-500.0,0.00022896,2]
[400032817,1767042645628,-500.0,0.00022896,2]
[400032818,1767042645637,-500.0,0.00022896,2]
[400032819,1767042645647,-500.0,0.00022896,2]
[400032820,1767042645656,-500.0,0.00022896,2]
[400032821,1767042645666,-500.0,0.00022896,2]
[400032822,1767042645675,-2398.4119403,0.00022896,2]
[400032823,1767042645685,-496.47127164,0.00022896,2]
[400032824,1767042645695,-187.04819548,0.00022913,2]
[400032825,1767042645704,-271.2,0.00022914,2]
[400032826,1767042645714,-1201.90565355,0.00023013,2]
[400032827,1767042645723,-500.0,0.00023013,2]
[400032828,1767042645733,-893.04,0.00023013,2]
[400032829,1767042645742,-500.0,0.00023013,2]
[400032830,1767042645752,-500.0,0.00023013,2]
[400032831,1767042645761,-570.17,0.00023013,2]
[400032832,1767042645770,-500.0,0.00023013,2]
[400032833,1767042645779,-500.0,0.00023013,2]
[400032835,1767042645789,-4821.6,0.00023013,2]
[400032837,1767042645798,-500.0,0.00023013,2]
[400032838,1767042645808,-500.0,0.00023013,2]
[400032839,1767042645817,-500.0,0.00023013,2]
[400032840,1767042645827,-502.9,0.00023013,2]
[400032841,1767042645836,-501.1,0.00023013,2]
[400032842,1767042645846,-680.8,0.00023013,2]
[400032843,1767042645855,-878.29,0.00023013,2]
[400032844,1767042645864,-994.31,0.00023013,2]
[400032845,1767042645874,-967.31,0.00023013,2]
[400032846,1767042645884,-500.0,0.00023075,2]
[400032848,1767042645893,-500.0,0.00023086,2]
[400032849,1767042645903,-1000.0,0.00023268,10]
[400032850,1767042645912,-492.0,0.00023268,10]
[400032851,1767042645921,-1201.90565355,0.00023287,2]
[400032852,1767042645930,-500.0,0.00023287,2]
[400032853,1767042645939,-893.04,0.00023287,2]
[400032855,1767042645950,-500.0,0.00023287,2]
[400032856,1767042645959,-500.0,0.00023287,2]
[400032857,1767042645969,-570.17,0.00023287,2]
[400032858,1767042645979,-500.0,0.00023287,2]
[400032859,1767042645989,-587.13463047,0.00023287,2]
[400032860,1767042645999,-4821.6,0.00023287,2]
[400032861,1767042646010,-500.0,0.00023287,2]
[400032862,1767042646020,-500.0,0.00023287,2]
[400032863,1767042646029,-500.0,0.00023287,2]
[400032864,1767042646039,-502.9,0.00023287,2]
[400032865,1767042646048,-501.1,0.00023287,2]
[400032866,1767042646059,-680.8,0.00023287,2]
[400032867,1767042646069,-878.29,0.00023287,2]
[400032868,1767042646079,-994.31,0.00023287,2]
[400032869,1767042646088,-967.31,0.00023287,2]
[400032870,1767042646098,-500.0,0.00023321,2]
[400032871,1767042646107,-2000.0,0.00023333,7]
[400032872,1767042646117,-500.0,0.00023427,2]
[400032873,1767042646126,-2487.15318209,0.00023444,2]
[400032874,1767042646136,-514.84070869,0.00023444,2]
[400032875,1767042646146,-318.66647075,0.00023473,2]
[400032876,1767042646155,-1220.12405386,0.00023478,2]
[400032877,1767042646165,-1953.12492624,0.00023478,2]
[400032878,1767042646175,-393.0,0.00023512,2]
[400032879,1767042646184,-1201.90565355,0.00023561,2]
[400032880,1767042646193,-500.0,0.00023561,2]
[400032881,1767042646203,-893.04,0.00023561,2]
[400032882,1767042646212,-500.0,0.00023561,2]
[400032883,1767042646221,-155.7364656,0.00023561,2]
[400032884,1767042646231,-570.17,0.00023561,2]
[400032885,1767042646240,-500.0,0.00023561,2]
[400032886,1767042646250,-4821.6,0.00023561,2]
[400032887,1767042646260,-284.04,0.00023561,2]
[400032888,1767042646277,-500.0,0.00023561,2]
[400032889,1767042646290,-500.0,0.00023561,2]
[400032890,1767042646300,-502.9,0.00023561,2]
[400032891,1767042646310,-151.0,0.00023561,2]
[400032893,1767042646320,-501.1,0.00023561,2]
[400032895,1767042646331,-262.001019,0.00023561,2]
[400032897,1767042646434,-151.0,0.00023561,2]
[400032898,1767042646444,-680.8,0.00023561,2]
[400032899,1767042646453,-878.29,0.00023561,2]
[400032900,1767042646463,-151.0,0.00023561,2]
[400032901,1767042646473,-151.0,0.00023561,2]
[400032902,1767042646483,-151.0,0.00023561,2]
[400032903,1767042646494,-994.31,0.00023561,2]
[400032904,1767042646507,-967.31,0.00023561,2]
[400032905,1767042646516,-157.035377,0.00023561,2]
[400032906,1767042646525,-271.2,0.00023641,2]
[400032907,1767042646535,-1000.0,0.00023719,30]
[400032908,1767042646546,-180.0,0.00023733,2]
[400032909,1767042646555,-231341.82758664,0.0002376,2]
[400032910,1767042646564,-500.0,0.00023783,2]
[400032911,1767042646575,-500.0,0.00023816,2]
[400032912,1767042646584,-1201.90565355,0.00023835,2]
[400032913,1767042646594,-500.0,0.00023835,2]
[400032914,1767042646603,-893.04,0.00023835,2]
[400032915,1767042646612,-500.0,0.00023835,2]
[400032916,1767042646621,-570.17,0.00023835,2]
[400032917,1767042646631,-500.0,0.00023835,2]
[400032918,1767042646640,-200.0,0.00023835,2]
[400032919,1767042646650,-200.0,0.00023835,2]
[400032920,1767042646659,-200.0,0.00023835,2]
[400032921,1767042646668,-200.0,0.00023835,2]
[400032922,1767042646677,-200.0,0.00023835,2]
[400032923,1767042646686,-151.0,0.00023835,2]
[400032924,1767042646695,-200.0,0.00023835,2]
[400032925,1767042646705,-151.0,0.00023835,2]
[400032926,1767042646714,-200.0,0.00023835,2]
[400032927,1767042646723,-200.0,0.00023835,2]
[400032928,1767042646733,-151.0,0.00023835,2]
[400032929,1767042646743,-151.0,0.00023835,2]
[400032930,1767042646752,-151.0,0.00023835,2]
[400032931,1767042646762,-4821.6,0.00023835,2]
[400032932,1767042646772,-151.0,0.00023835,2]
[400032933,1767042646783,-298.968903,0.00023835,2]
[400032934,1767042646793,-151.0,0.00023835,2]
[400032935,1767042646803,-151.0,0.00023835,2]
[400032936,1767042646817,-500.0,0.00023835,2]
[400032937,1767042646831,-167.933848,0.00023835,2]
[400032938,1767042646841,-249.18,0.00023835,2]
[400032939,1767042646851,-500.0,0.00023835,2]
[400032940,1767042646861,-151.0,0.00023835,2]
[400032941,1767042646872,-151.0,0.00023835,2]
[400032942,1767042646881,-156.233766,0.00023835,2]
[400032943,1767042646891,-151.0,0.00023835,2]
[400032944,1767042646900,-502.9,0.00023835,2]
[400032945,1767042646909,-151.0,0.00023835,2]
[400032946,1767042646919,-151.0,0.00023835,2]
[400032947,1767042646929,-151.0,0.00023835,2]
[400032948,1767042646938,-223.767963,0.00023835,2]
[400032949,1767042646947,-501.1,0.00023835,2]
[400032950,1767042646957,-680.8,0.00023835,2]
[400032951,1767042646966,-878.29,0.00023835,2]
[400032952,1767042646975,-994.31,0.00023835,2]
[400032953,1767042646985,-967.31,0.00023835,2]
[400032954,1767042646994,-151.0,0.00023835,2]
[400032955,1767042647004,-151.0,0.00023835,2]
[400032956,1767042647013,-500.0,0.00023882,2]
[400032957,1767042647022,-10476.5,0.000239,2]
[400032958,1767042647032,-27632.5,0.000239,3]
[400032959,1767042647042,-393.0,0.00023909,2]
[400032960,1767042647051,-151.0,0.00023932,2]
[400032961,1767042647061,-151.0,0.00023932,2]
[400032962,1767042647070,-151.0,0.00023932,2]
[400032963,1767042647079,-151.0,0.00023932,2]
[400032964,1767042647089,-151.0,0.00023932,2]
[400032965,1767042647098,-1364.0,0.00023932,2]
[400032966,1767042647108,-639.0,0.00023932,2]
[400032967,1767042647117,-180.0,0.00023972,2]
[400032968,1767042647127,-2579.17784983,0.00023992,2]
[400032969,1767042647136,-533.88981491,0.00023992,2]
[400032970,1767042647145,-1822.93,0.00024,14]
[400032971,1767042647155,-157.12,0.00024,7]
[400032972,1767042647164,-162.46,0.00024,7]
[400032973,1767042647174,-500.0,0.00024078,2]
[400032974,1767042647183,-180.0,0.00024092,2]
[400032975,1767042647192,-150.0,0.000241,2]
[400032976,1767042647201,-250.0,0.000241,10]
[400032977,1767042647211,-1201.90565355,0.00024109,2]
[400032978,1767042647221,-500.0,0.00024109,2]
[400032979,1767042647231,-893.04,0.00024109,2]
[400032980,1767042647240,-500.0,0.00024109,2]
[400032981,1767042647250,-570.17,0.00024109,2]
[400032982,1767042647259,-500.0,0.00024109,2]
[400032983,1767042647269,-200.0,0.00024109,2]
[400032984,1767042647279,-4821.6,0.00024109,2]
[400032985,1767042647288,-500.0,0.00024109,2]
[400032986,1767042647298,-500.0,0.00024109,2]
[400032987,1767042647307,-502.9,0.00024109,2]
[400032988,1767042647316,-501.1,0.00024109,2]
[400032989,1767042647326,-680.8,0.00024109,2]
[400032990,1767042647336,-878.29,0.00024109,2]
[400032991,1767042647345,-994.31,0.00024109,2]
[400032992,1767042647357,-967.31,0.00024109,2]
[400032993,1767042647366,-31327.50318541,0.00024142,7]
[400032994,1767042647376,-1041.66666667,0.00024142,7]
[400032995,1767042647385,-2000.0,0.00024167,7]
[400032996,1767042647395,-1207.08,0.000242,7]
[400032997,1767042647405,-301.398599,0.000242,10]
[400032998,1767042647414,-180.0,0.00024283,2]
[400032999,1767042647423,-2000.0,0.00024348,7]
[400033000,1767042647432,-2000.0,0.00024357,7]
[400033001,1767042647443,-2000.0,0.00024365,7]
[400033002,1767042647452,-180.0,0.00024365,2]
[400033003,1767042647462,-271.2,0.00024367,2]
[400033004,1767042647471,-2000.0,0.00024374,7]
[400033005,1767042647481,-2000.0,0.00024383,7]
[400033006,1767042647492,-1201.90565355,0.00024383,2]
[400033007,1767042647505,-500.0,0.00024383,2]
[400033008,1767042647515,-382.63332871,0.00024383,7]
[400033009,1767042647524,-893.04,0.00024383,2]
[400033010,1767042647533,-500.0,0.00024383,2]
[400033011,1767042647546,-570.17,0.00024383,2]
[400033012,1767042647556,-200.0,0.00024383,2]
[400033013,1767042647566,-4821.6,0.00024383,2]
[400033014,1767042647576,-500.0,0.00024383,2]
[400033015,1767042647586,-500.0,0.00024383,2]
[400033016,1767042647595,-502.9,0.00024383,2]
[400033017,1767042647604,-501.1,0.00024383,2]
[400033018,1767042647614,-680.8,0.00024383,2]
[400033019,1767042647624,-878.29,0.00024383,2]
[400033020,1767042647633,-994.31,0.00024383,2]
[400033021,1767042647643,-967.31,0.00024383,2]
[400033022,1767042647652,-213.61,0.000244,2]
[400033023,1767042647661,-428.0,0.000244,2]
[400033024,1767042647670,-3112.14333176,0.00024402,2]
[400033025,1767042647679,-2189.40471353,0.00024481,2]
[400033026,1767042647688,-180.0,0.00024496,2]
[400033027,1767042647698,-278.94300174,0.00024521,2]
[400033028,1767042647707,-4300.10691997,0.0002454,2]
[400033029,1767042647716,-2674.60743027,0.0002454,2]
[400033030,1767042647725,-553.64373807,0.0002454,2]
[400033031,1767042647734,-220.073602,0.0002454,2]
[400033032,1767042647743,-151.0,0.0002454,2]
[400033033,1767042647752,-151.0,0.0002454,2]
[400033034,1767042647761,-151.0,0.0002454,2]
[400033035,1767042647770,-151.0,0.0002454,2]
[400033036,1767042647779,-151.0,0.0002454,2]
[400033037,1767042647788,-151.0,0.0002454,2]
[400033038,1767042647798,-151.0,0.0002454,2]
[400033039,1767042647807,-151.0,0.0002454,2]
[400033040,1767042647816,-151.0,0.0002454,2]
[400033041,1767042647825,-151.0,0.0002454,2]
[400033042,1767042647835,-151.0,0.0002454,2]
[400033043,1767042647845,-151.0,0.0002454,2]
[400033044,1767042647854,-151.0,0.0002454,2]
[400033045,1767042647864,-253.301123,0.0002454,2]
[400033046,1767042647874,-151.0,0.0002454,2]
[400033047,1767042647883,-253.301123,0.0002454,2]
[400033048,1767042647891,-151.0,0.0002454,2]
[400033049,1767042647900,-253.301123,0.0002454,2]
[400033050,1767042647909,-253.301123,0.0002454,2]
[400033051,1767042647918,-151.0,0.0002454,2]
[400033052,1767042647927,-151.0,0.0002454,2]
[400033053,1767042647937,-151.0,0.0002454,2]
[400033054,1767042647946,-192.84568185,0.00024586,2]
[400033055,1767042647956,-909.63292363,0.00024639,2]
[400033056,1767042647965,-1253.24308537,0.00024642,2]
[400033057,1767042647975,-500.0,0.00024646,2]
[400033058,1767042647985,-646.56943936,0.0002465,2]
[400033059,1767042647994,-188.10572335,0.0002465,2]
[400033060,1767042648004,-510.2251373,0.0002465,2]
[400033061,1767042648014,-918.40524714,0.0002465,2]
[400033062,1767042648023,-1632.72043936,0.0002465,2]
[400033063,1767042648033,-2551.12568649,0.0002465,2]
[400033064,1767042648042,-1163.82499084,0.0002465,2]
[400033065,1767042648052,-1201.90565355,0.00024657,2]
[400033066,1767042648061,-500.0,0.00024657,2]
[400033067,1767042648070,-893.04,0.00024657,2]
[400033068,1767042648080,-500.0,0.00024657,2]
[400033069,1767042648089,-570.17,0.00024657,2]
[400033070,1767042648099,-200.0,0.00024657,2]
[400033071,1767042648108,-4821.6,0.00024657,2]
[400033072,1767042648119,-500.0,0.00024657,2]
[400033073,1767042648128,-500.0,0.00024657,2]
[400033074,1767042648139,-502.9,0.00024657,2]
[400033075,1767042648149,-501.1,0.00024657,2]
[400033076,1767042648159,-680.8,0.00024657,2]
[400033077,1767042648169,-878.29,0.00024657,2]
[400033078,1767042648179,-994.31,0.00024657,2]
[400033079,1767042648189,-967.31,0.00024657,2]
[400033080,1767042648198,-380.0,0.00024658,2]
[400033081,1767042648207,-263.70308672,0.00024658,2]
[400033082,1767042648218,-177.30496876,0.00024658,2]
[400033083,1767042648228,-153.20745646,0.00024658,2]
[400033084,1767042648238,-500.0,0.00024658,2]
[400033085,1767042648247,-15277.58765553,0.000247,2]
[400033086,1767042648257,-2376.79553465,0.00024786,5]
[400033087,1767042648266,-203.12300422,0.00024795,2]
[400033088,1767042648276,-500.0,0.00024795,2]
[400033089,1767042648286,-153.304838,0.000248,7]
[400033090,1767042648295,-151.0,0.000248,7]
[400033091,1767042648305,-151.0,0.000248,7]
[400033092,1767042648314,-151.0,0.000248,7]
[400033093,1767042648323,-167.905055,0.000248,7]
[400033094,1767042648332,-151.0,0.000248,7]
[400033095,1767042648342,-151.0,0.000248,7]
[400033096,1767042648351,-151.0,0.000248,7]
[400033097,1767042648361,-151.0,0.000248,7]
[400033098,1767042648371,-151.0,0.000248,7]
[400033099,1767042648380,-151.0,0.000248,7]
[400033100,1767042648390,-151.0,0.000248,7]
[400033101,1767042648399,-151.0,0.000248,7]
[400033102,1767042648408,-151.0,0.000248,7]
[400033103,1767042648418,-151.0,0.000248,7]
[400033104,1767042648427,-227.262837,0.000248,7]
[400033105,1767042648437,-151.0,0.000248,7]
[400033106,1767042648446,-151.0,0.000248,7]
[400033107,1767042648455,-151.0,0.000248,7]
[400033108,1767042648464,-151.0,0.000248,7]
[400033109,1767042648473,-1984.534635,0.000248,2]
[400033110,1767042648565,-151.0,0.000248,7]
[400033111,1767042648577,-151.0,0.000248,7]
[400033112,1767042648586,-253.301123,0.000248,7]
[400033113,1767042648595,-151.0,0.000248,7]
[400033114,1767042648605,-253.301123,0.000248,7]
[400033115,1767042648614,-180.554603,0.000248,7]
[400033116,1767042648624,-253.301123,0.000248,7]
[400033117,1767042648633,-253.301123,0.000248,7]
[400033118,1767042648643,-151.0,0.000248,7]
[400033119,1767042648652,-151.0,0.000248,7]
[400033120,1767042648661,-185.798208,0.000248,7]
[400033121,1767042648670,-151.0,0.000248,7]
[400033122,1767042648681,-151.0,0.000248,7]
[400033123,1767042648691,-151.0,0.000248,7]
[400033124,1767042648701,-151.0,0.000248,7]
[400033125,1767042648710,-151.0,0.000248,7]
[400033126,1767042648720,-151.0,0.000248,7]
[400033127,1767042648730,-226.600285,0.000248,7]
[400033128,1767042648740,-151.0,0.000248,7]
[400033129,1767042648749,-151.0,0.000248,7]
[400033130,1767042648759,-151.0,0.000248,7]
[400033131,1767042648768,-151.0,0.000248,7]
[400033132,1767042648778,-151.0,0.000248,7]
[400033133,1767042648788,-151.0,0.000248,7]
[400033134,1767042648798,-338.2114975,0.00024808,2]
[400033135,1767042648807,-32767.9028181,0.00024847,2]
[400033136,1767042648816,-2149.02888,0.00024847,2]
[400033137,1767042648826,-956.0252452,0.00024847,2]
[400033138,1767042648835,-151.0,0.00024847,7]
[400033139,1767042648845,-151.0,0.00024847,7]
[400033140,1767042648855,-151.0,0.00024847,7]
[400033141,1767042648864,-249.44556,0.00024847,7]
[400033142,1767042648874,-151.0,0.00024847,7]
[400033143,1767042648883,-151.0,0.00024847,7]
[400033144,1767042648892,-151.0,0.000249,7]
[400033145,1767042648901,-151.0,0.000249,7]
[400033146,1767042648911,-151.0,0.000249,7]
[400033147,1767042648920,-151.0,0.000249,7]
[400033148,1767042648929,-151.0,0.000249,7]
[400033149,1767042648938,-151.0,0.000249,7]
[400033150,1767042648947,-151.0,0.000249,7]
[400033151,1767042648957,-172.576134,0.000249,7]
[400033152,1767042648966,-151.0,0.000249,7]
[400033153,1767042648975,-151.0,0.000249,7]
[400033154,1767042648985,-151.0,0.000249,7]
[400033155,1767042648994,-151.0,0.000249,7]
[400033156,1767042649004,-212.47584,0.000249,7]
[400033157,1767042649013,-151.0,0.000249,7]
[400033158,1767042649022,-212.47584,0.000249,7]
[400033159,1767042649033,-212.47584,0.000249,7]
[400033160,1767042649042,-212.47584,0.000249,7]
[400033161,1767042649051,-151.0,0.000249,7]
[400033162,1767042649060,-151.0,0.000249,7]
[400033163,1767042649070,-151.0,0.000249,7]
[400033164,1767042649079,-151.0,0.000249,7]
[400033165,1767042649089,-151.0,0.000249,7]
[400033166,1767042649099,-151.0,0.000249,7]
[400033167,1767042649109,-151.0,0.000249,7]
[400033168,1767042649119,-151.0,0.000249,7]
[400033169,1767042649128,-983.498428,0.000249,7]
[400033170,1767042649138,-983.498428,0.000249,7]
[400033171,1767042649148,-156.404391,0.000249,7]
[400033172,1767042649157,-983.498428,0.000249,7]
[400033173,1767042649166,-983.498428,0.000249,7]
[400033174,1767042649175,-151.0,0.000249,7]
[400033175,1767042649185,-151.0,0.000249,7]
[400033176,1767042649194,-151.0,0.000249,7]
[400033177,1767042649203,-151.0,0.000249,7]
[400033178,1767042649212,-209.378092,0.000249,7]
[400033179,1767042649221,-209.378092,0.000249,7]
[400033180,1767042649230,-209.378092,0.000249,7]
[400033181,1767042649240,-209.378092,0.000249,7]
[400033182,1767042649251,-151.0,0.000249,7]
[400033183,1767042649260,-300.735032,0.000249,7]
[400033184,1767042649270,-151.0,0.000249,7]
[400033185,1767042649279,-151.0,0.000249,7]
[400033186,1767042649288,-151.0,0.000249,7]
[400033187,1767042649298,-151.0,0.000249,7]
[400033188,1767042649307,-151.0,0.000249,7]
[400033189,1767042649317,-289.728096,0.000249,7]
[400033190,1767042649326,-151.0,0.000249,7]
[400033191,1767042649336,-151.0,0.000249,7]
[400033192,1767042649345,-253.301123,0.000249,7]
[400033193,1767042649354,-151.0,0.000249,7]
[400033194,1767042649363,-253.301123,0.000249,7]
[400033195,1767042649372,-253.301123,0.000249,7]
[400033196,1767042649381,-253.301123,0.000249,7]
[400033197,1767042649390,-151.0,0.000249,7]
[400033198,1767042649400,-151.0,0.000249,7]
[400033199,1767042649409,-1000.0,0.000249,2]
[400033200,1767042649419,-1000.0,0.000249,2]
[400033201,1767042649428,-1000.0,0.000249,2]
[400033202,1767042649437,-1000.0,0.000249,2]
[400033203,1767042649447,-727.1241338,0.000249,2]
[400033204,1767042649457,-168.803854,0.000249,7]
[400033205,1767042649466,-151.0,0.000249,7]
[400033206,1767042649475,-151.0,0.000249,7]